bitfinex-derivatives/quotes_BTCF0:USTF0_20251002
["timestamp","ask_amount","ask_price","bid_price","bid_amount"]
[1759429043811,1.59694233,120160.0,120150.0,0.02270362]
[1759429044111,1.60544639,120160.0,120150.0,0.02270362]
[1759429044416,1.60544639,120160.0,120150.0,9.362e-05]
[1759429047118,0.84896639,120160.0,120150.0,9.362e-05]
[1759429047318,1.60548639,120160.0,120150.0,9.362e-05]
[1759429048213,1.2844254,120160.0,120150.0,9.362e-05]
[1759429048414,1.60548639,120160.0,120150.0,9.362e-05]
[1759429048715,0.0831828,120150.0,120140.0,0.36005891]
[1759429048917,0.43889379,120150.0,120140.0,0.38162891]
[1759429049322,0.43889379,120150.0,120140.0,0.36005891]
[1759429050114,0.1178397,120140.0,120120.0,0.3608]
[1759429050417,0.1178397,120140.0,120120.0,0.38237]
[1759429050418,0.43890769,120130.0,120120.0,0.38237]
[1759429050619,1.19552257,120130.0,120120.0,0.38237]
[1759429052319,0.43900257,120130.0,120120.0,0.4655736]
[1759429052521,0.03474488,120130.0,120120.0,0.78663459]
[1759429052711,9.488e-05,120130.0,120120.0,1.19928459]
[1759429052918,0.1178379,120150.0,120140.0,0.02157]
[1759429053119,1.19545889,120150.0,120140.0,0.38237]
[1759429053619,0.1178379,120150.0,120140.0,0.38237]
[1759429053922,1.26317157,120150.0,120140.0,0.38237]
[1759429054622,1.26317157,120150.0,120140.0,0.4655598]
[1759429054816,0.50657157,120150.0,120140.0,0.4655598]
[1759429055021,1.26317157,120150.0,120140.0,0.4655598]
[1759429055720,1.17998367,120150.0,120140.0,0.4655598]
[1759429056024,8.458e-05,120150.0,120140.0,1.19927079]
[1759429056227,0.44420458,120150.0,120140.0,1.19927079]
[1759429056423,0.0963451,120170.0,120160.0,0.1173959]
[1759429056424,0.104649,120170.0,120160.0,0.1173959]
[1759429056723,0.874419,120170.0,120160.0,0.78660689]
[1759429058227,0.874419,120170.0,120160.0,0.4655459]
[1759429059730,0.01317,120180.0,120170.0,0.083169]
[1759429059921,0.79958139,120180.0,120170.0,0.79924999]
[1759429060123,0.79958139,120180.0,120170.0,0.478189]
[1759429060327,0.88274349,120180.0,120170.0,0.465539]
[1759429062226,1.20380448,120180.0,120170.0,0.465539]
[1759429062526,0.117819,120170.0,120160.0,0.4655411]
[1759429062726,0.43887999,120170.0,120160.0,0.4655411]
[1759429063025,0.117819,120170.0,120160.0,0.4655411]
[1759429064329,0.03465,120170.0,120160.0,0.4655411]
[1759429064719,0.43887999,120170.0,120160.0,0.4655411]
[1759429065820,0.117819,120170.0,120160.0,0.4655411]
[1759429066023,0.79113,120170.0,120160.0,0.4655411]
[1759429066324,0.874299,120170.0,120160.0,0.4655411]
[1759429066923,0.874299,120170.0,120160.0,0.4655459]
[1759429067325,1.19535999,120170.0,120160.0,0.4655459]
[1759429067825,0.1178259,120160.0,120150.0,0.38237]
[1759429068022,0.1178259,120160.0,120140.0,0.4655542]
[1759429068023,0.1178328,120150.0,120140.0,0.4655542]
[1759429068327,1.19533379,120150.0,120140.0,0.4655542]
[1759429069221,0.8742728,120150.0,120140.0,0.4655542]
[1759429069427,0.1178328,120150.0,120140.0,0.4655542]
[1759429069625,0.8742728,120150.0,120140.0,0.4655542]
[1759429072130,0.1178328,120150.0,120140.0,0.4655542]
[1759429072330,0.8742728,120150.0,120140.0,0.4655542]
[1759429073832,1.19533379,120150.0,120140.0,0.4655542]
[1759429075535,0.03465,120150.0,120140.0,0.4655542]
[1759429075729,0.03465,120150.0,120140.0,0.78661519]
[1759429076031,0.64304,120150.0,120140.0,0.80015519]
[1759429076234,0.64304,120150.0,120140.0,0.4790942]
[1759429076423,0.64304,120150.0,120140.0,1.12162714]
[1759429077535,0.02148,120150.0,120140.0,1.12162714]
[1759429077736,0.77792,120150.0,120140.0,1.12162714]
[1759429078037,0.02148,120150.0,120140.0,1.12162714]
[1759429078334,0.55586,120160.0,120150.0,0.1189228]
[1759429078539,0.55586,120160.0,120150.0,0.80098927]
[1759429080043,0.02186,120160.0,120150.0,0.80098927]
[1759429080232,0.7783,120160.0,120150.0,0.80098927]
[1759429082133,0.7783,120160.0,120150.0,0.4797228]
[1759429082436,0.8748459,120160.0,120150.0,0.80098927]
[1759429082936,0.8748459,120160.0,120150.0,0.78833927]
[1759429083330,1.19611237,120160.0,120150.0,0.78833927]
[1759429085336,0.8748459,120160.0,120150.0,0.78833927]
[1759429085537,0.79167,120160.0,120150.0,0.78833927]
[1759429085737,0.79163,120160.0,120150.0,0.78833927]
[1759429086541,0.03523,120160.0,120150.0,0.80098927]
[1759429086731,0.02099554,120160.0,120150.0,1.12225574]
[1759429087332,0.7908803,120170.0,120160.0,0.1062659]
[1759429087536,1.1331422,120170.0,120160.0,0.78833237]
[1759429087839,0.81187573,120170.0,120160.0,0.70515647]
[1759429088038,0.81187573,120170.0,120160.0,0.38389]
[1759429088239,1.1331422,120170.0,120160.0,0.38389]
[1759429088438,1.1331422,120170.0,120160.0,0.70515647]
[1759429089041,1.1331422,120170.0,120160.0,0.34435647]
[1759429089239,1.1331422,120170.0,120160.0,0.02309]
[1759429089543,0.1184059,120160.0,120150.0,0.70515647]
[1759429089746,0.4606678,120160.0,120150.0,0.70515647]
[1759429090446,0.4606678,120160.0,120150.0,0.3608]
[1759429090643,0.4606678,120160.0,120150.0,0.70515647]
[1759429091041,1.18193427,120160.0,120150.0,0.3608]
[1759429091441,0.8606678,120160.0,120150.0,0.3608]
[1759429092142,0.8606678,120160.0,120150.0,0.38389]
[1759429093343,0.86068333,120160.0,120150.0,0.38389]
[1759429093540,0.86068333,120160.0,120150.0,0.70515647]
[1759429093947,0.86068333,120160.0,120150.0,0.34435647]
[1759429094448,0.1184128,120150.0,120140.0,0.38389]
[1759429094647,1.21701492,120150.0,120140.0,0.3608]
[1759429094853,0.1184197,120140.0,120130.0,0.3608]
[1759429095145,0.1184267,120130.0,120120.0,0.70515647]
[1759429095448,1.19601317,120130.0,120120.0,0.70515647]
[1759429095642,0.8747467,120130.0,120120.0,0.70515647]
[1759429096043,0.8747467,120130.0,120120.0,0.78836007]
[1759429097150,0.1184267,120130.0,120120.0,0.70515647]
[1759429097443,0.8747467,120130.0,120120.0,0.78836007]
[1759429097847,0.1184267,120130.0,120120.0,0.78836007]
[1759429098042,0.1184267,120130.0,120120.0,1.10962654]
[1759429098243,0.8747467,120130.0,120120.0,1.12227654]
[1759429098742,0.1184267,120130.0,120120.0,0.4797436]
[1759429098944,0.1184267,120130.0,120120.0,1.12227654]
[1759429099143,0.8747867,120130.0,120120.0,1.12227654]
[1759429099550,0.1184267,120130.0,120120.0,1.12227654]
[1759429099748,0.8747867,120130.0,120120.0,1.12227654]
[1759429100551,0.8614167,120130.0,120120.0,1.12227654]
[1759429100948,0.8747867,120130.0,120120.0,0.70515647]
[1759429101251,0.1184336,120120.0,120110.0,0.38389]
[1759429101452,0.43970007,120120.0,120110.0,0.70515647]
[1759429102852,0.44824471,120120.0,120110.0,0.70515647]
[1759429103251,0.44824471,120120.0,120110.0,0.38389]
[1759429104154,0.76951118,120120.0,120110.0,0.38389]
[1759429104956,0.1178475,120100.0,120090.0,0.38195426]
[1759429105159,1.19547397,120100.0,120090.0,0.38195426]
[1759429105355,1.19547397,120100.0,120090.0,0.70322073]
[1759429105751,0.50410756,120100.0,120090.0,0.38195426]
[1759429105950,1.26050756,120100.0,120090.0,0.38195426]
[1759429106357,1.58177403,120100.0,120090.0,0.38195426]
[1759429106751,1.58177403,120100.0,120090.0,0.36086426]
[1759429107860,0.82537403,120100.0,120090.0,0.38317426]
[1759429108057,1.26054756,120100.0,120090.0,0.38317426]
[1759429109963,0.50410756,120100.0,120090.0,0.38317426]
[1759429110166,1.26058756,120100.0,120090.0,0.38317426]
[1759429110764,0.50410756,120100.0,120090.0,0.38317426]
[1759429110960,1.26058756,120100.0,120090.0,0.38317426]
[1759429111159,0.93932109,120100.0,120090.0,0.38317426]
[1759429111371,1.26058756,120100.0,120090.0,0.38317426]
[1759429111979,0.50410756,120100.0,120090.0,0.38317426]
[1759429112278,1.58189403,120100.0,120090.0,0.38317426]
[1759429112477,1.58189403,120100.0,120090.0,0.02237426]
[1759429112681,2.34269403,120100.0,120090.0,6.426e-05]
[1759429113474,1.98189403,120100.0,120090.0,6.426e-05]
[1759429113681,1.22537403,120100.0,120090.0,6.426e-05]
[1759429113882,1.98189403,120100.0,120090.0,6.426e-05]
[1759429114777,1.22537403,120100.0,120090.0,6.426e-05]
[1759429114977,2.01484403,120100.0,120090.0,6.426e-05]
[1759429115781,0.61579109,120100.0,120090.0,0.78766513]
[1759429116082,0.61579109,120100.0,120090.0,1.5215816]
[1759429116083,0.20221109,120100.0,120090.0,1.5215816]
[1759429116284,0.95877109,120100.0,120090.0,1.20031513]
[1759429116477,0.8937775,120100.0,120090.0,1.20031513]
[1759429117579,1.22826397,120100.0,120090.0,1.10444073]
[1759429117878,0.054,120100.0,120090.0,1.20031513]
[1759429118084,0.68788,120100.0,120090.0,1.20031513]
[1759429118482,0.054,120100.0,120090.0,0.87904866]
[1759429118780,0.81056,120100.0,120090.0,0.87904866]
[1759429118985,0.81056,120100.0,120090.0,1.20031513]
[1759429119282,0.054,120100.0,120090.0,1.20031513]
[1759429119478,0.0965772,120120.0,120110.0,0.0832105]
[1759429119684,0.1195772,120120.0,120110.0,0.80023697]
[1759429119880,0.79293,120120.0,120110.0,0.80023697]
[1759429120079,0.03637,120120.0,120110.0,0.80023697]
[1759429120287,0.77956,120120.0,120110.0,0.80023697]
[1759429122081,0.77956,120120.0,120110.0,1.16103697]
[1759429122486,0.023,120120.0,120110.0,1.88230344]
[1759429122786,0.71504,120120.0,120110.0,1.48230344]
[1759429122983,0.71504,120120.0,120110.0,1.16103697]
[1759429123282,0.71504,120120.0,120110.0,1.56103697]
[1759429123586,0.69204,120120.0,120110.0,1.88230344]
[1759429123784,0.077,120130.0,120120.0,0.1055136]
[1759429123985,0.04063,120130.0,120120.0,1.44312301]
[1759429124188,0.04063,120130.0,120120.0,1.12185654]
[1759429124689,0.04063,120130.0,120120.0,1.87837654]
[1759429124983,0.04063,120130.0,120120.0,1.85877654]
[1759429125184,0.04063,120130.0,120120.0,1.10225654]
[1759429125489,0.93577737,120140.0,120130.0,0.1187967]
[1759429125683,0.95877737,120140.0,120130.0,0.4795967]
[1759429126589,0.95877737,120140.0,120130.0,0.80086317]
[1759429127189,0.97199737,120140.0,120130.0,0.02231]
[1759429127690,1.65406384,120140.0,120130.0,0.02231]
[1759429127897,1.35374896,120140.0,120130.0,0.02231]
[1759429128189,0.99294896,120140.0,120130.0,0.02231]
[1759429128379,0.99294896,120140.0,120130.0,0.42677317]
[1759429128576,0.97199737,120140.0,120130.0,0.02231]
[1759429128782,0.97199737,120140.0,120130.0,0.34357647]
[1759429128983,0.97199737,120140.0,120130.0,0.02231]
[1759429128984,1.31421676,120140.0,120130.0,0.02231]
[1759429129185,0.67168382,120140.0,120130.0,0.4663067]
[1759429129386,0.99295029,120140.0,120130.0,0.4663067]
[1759429129590,0.97199737,120140.0,120130.0,0.38311]
[1759429129782,0.97199737,120140.0,120130.0,0.02231]
[1759429129978,0.99295182,120140.0,120130.0,0.02231]
[1759429130291,1.31421829,120140.0,120130.0,0.02231]
[1759429130590,1.21811182,120140.0,120130.0,0.34357647]
[1759429131685,1.21811182,120140.0,120130.0,0.02231]
[1759429132190,1.19715737,120140.0,120130.0,0.02231]
[1759429133084,0.1194167,120130.0,120120.0,0.02231]
[1759429133291,0.44068317,120130.0,120120.0,0.34357647]
[1759429133488,0.44068317,120130.0,120120.0,0.02231]
[1759429133688,0.1194236,120120.0,120110.0,0.4663163]
[1759429133992,0.1194305,120110.0,120100.0,0.78758957]
[1759429134192,0.44069697,120110.0,120100.0,0.78758957]
[1759429134494,0.44069697,120110.0,120100.0,0.70437647]
[1759429135691,0.1184075,120100.0,120090.0,0.38418426]
[1759429135891,1.19611397,120100.0,120090.0,0.38418426]
[1759429136394,1.19611397,120100.0,120090.0,0.34465073]
[1759429136986,1.51738044,120100.0,120090.0,6.426e-05]
[1759429137295,2.27818044,120100.0,120090.0,6.426e-05]
[1759429138293,1.97830827,120100.0,120090.0,6.426e-05]
[1759429138595,0.1184213,120080.0,120070.0,0.38412]
[1759429138791,1.19664379,120080.0,120070.0,0.38412]
[1759429139298,1.19664379,120080.0,120070.0,0.02332]
[1759429140184,0.1184282,120070.0,120060.0,0.4806497]
[1759429140384,0.1184282,120070.0,120060.0,0.39741]
[1759429140995,0.8749482,120070.0,120060.0,0.39741]
[1759429141188,0.8749482,120070.0,120060.0,0.38412]
[1759429141189,0.87501246,120070.0,120060.0,0.38412]
[1759429141800,0.11849246,120070.0,120060.0,0.38412]
[1759429142002,0.11849246,120070.0,120060.0,0.39687]
[1759429142500,0.87509246,120070.0,120060.0,0.38412]
[1759429143791,0.87509246,120070.0,120060.0,0.02332]
[1759429144401,0.87505246,120070.0,120060.0,0.02332]
[1759429144898,0.11849246,120070.0,120060.0,0.02332]
[1759429145099,0.87509246,120070.0,120060.0,0.02332]
[1759429145298,0.94068164,120070.0,120060.0,0.02332]
[1759429146200,0.18408164,120070.0,120060.0,0.02332]
[1759429146494,0.18408164,120070.0,120060.0,0.38412]
[1759429146495,0.94068164,120070.0,120060.0,0.38412]
[1759429146702,0.94072164,120070.0,120060.0,0.39687]
[1759429146893,0.92734164,120070.0,120060.0,0.82966324]
[1759429147200,0.17070164,120070.0,120060.0,0.4801152]
[1759429147694,0.89402164,120070.0,120060.0,0.4801152]
[1759429148195,0.89402164,120070.0,120060.0,0.39687]
[1759429149395,0.86179246,120070.0,120060.0,0.82966324]
[1759429149601,0.86175246,120070.0,120060.0,1.22966324]
[1759429150100,0.86175246,120070.0,120060.0,1.14641804]
[1759429150297,0.86175246,120070.0,120060.0,0.39687]
[1759429151596,0.86175246,120070.0,120060.0,0.4801152]
[1759429154701,0.87513246,120070.0,120060.0,0.38412]
[1759429155297,0.87513246,120070.0,120060.0,0.4673652]
[1759429155703,0.11849246,120070.0,120060.0,0.4673652]
[1759429155904,0.87521246,120070.0,120060.0,0.4673652]
[1759429156103,0.87521246,120070.0,120060.0,0.4801152]
[1759429156803,0.87521246,120070.0,120060.0,0.4673652]
[1759429157107,0.87521246,120070.0,120060.0,0.38412]
[1759429158702,0.87521246,120070.0,120060.0,0.4673652]
[1759429159303,0.94046877,120070.0,120060.0,0.4673652]
[1759429159602,0.94046877,120070.0,120060.0,0.38412]
[1759429160210,1.26225796,120070.0,120060.0,0.38412]
[1759429161908,0.94046877,120070.0,120060.0,0.3608]
[1759429162213,1.66225796,120070.0,120060.0,0.3608]
[1759429163108,1.66225796,120070.0,120060.0,0.38412]
[1759429163307,1.6832452,120070.0,120060.0,0.38412]
[1759429163605,0.9265252,120070.0,120060.0,0.38412]
[1759429163813,1.6832452,120070.0,120060.0,0.38412]
[1759429164015,1.66225796,120070.0,120060.0,0.38412]
[1759429164212,1.66225796,120070.0,120060.0,0.3608]
[1759429164411,1.66225796,120070.0,120060.0,0.3824]
[1759429164607,1.66225796,120070.0,120060.0,0.4656452]
[1759429164806,1.66225796,120070.0,120060.0,0.3824]
[1759429165317,0.90553796,120070.0,120060.0,0.3824]
[1759429165614,1.34046877,120070.0,120060.0,0.4656452]
[1759429166307,1.36149377,120070.0,120060.0,0.4656452]
[1759429167213,1.36149377,120070.0,120060.0,0.3824]
[1759429167516,1.36149377,120070.0,120060.0,0.4656452]
[1759429168215,1.36149377,120070.0,120060.0,0.78743439]
[1759429168407,0.20477377,120070.0,120060.0,0.80089439]
[1759429168610,0.92708877,120070.0,120060.0,0.4791052]
[1759429168814,0.92708877,120070.0,120060.0,0.80089439]
[1759429169209,0.94813118,120070.0,120060.0,0.80089439]
[1759429169515,0.19141118,120070.0,120060.0,0.80089439]
[1759429169815,0.92708877,120070.0,120060.0,0.80089439]
[1759429170115,0.92708877,120070.0,120060.0,0.71764919]
[1759429171211,0.94813194,120070.0,120060.0,0.71764919]
[1759429172016,0.96164194,120070.0,120060.0,0.71764919]
[1759429172210,1.28343113,120070.0,120060.0,0.3824]
[1759429172614,1.28343113,120070.0,120060.0,0.3608]
[1759429173018,0.96164194,120070.0,120060.0,0.38393]
[1759429173212,1.28343113,120070.0,120060.0,0.38393]
[1759429173517,1.28343113,120070.0,120060.0,0.3608]
[1759429173716,0.96164194,120070.0,120060.0,0.3608]
[1759429173916,1.28343113,120070.0,120060.0,0.38393]
[1759429174513,0.96164194,120070.0,120060.0,0.38393]
[1759429174714,1.28343113,120070.0,120060.0,0.38393]
[1759429175021,1.28343113,120070.0,120060.0,0.02313]
[1759429175211,0.96164194,120070.0,120060.0,0.02313]
[1759429175410,0.0967552,120060.0,120050.0,0.4671821]
[1759429175717,0.1195721,120050.0,120040.0,0.467189]
[1759429175911,0.1195721,120050.0,120040.0,0.38393]
[1759429175912,0.8762921,120050.0,120040.0,0.38393]
[1759429176217,1.19808129,120050.0,120040.0,0.38393]
[1759429177018,1.21912009,120050.0,120040.0,0.02313]
[1759429177219,0.1195791,120040.0,120030.0,0.39668]
[1759429177414,0.1195791,120040.0,120030.0,0.467196]
[1759429178218,0.44136829,120040.0,120030.0,0.02313]
[1759429178418,0.44143255,120040.0,120030.0,0.02313]
[1759429178713,0.11964336,120040.0,120030.0,0.02313]
[1759429178916,0.44971144,120040.0,120030.0,0.02313]
[1759429179310,1.20647144,120040.0,120030.0,0.02313]
[1759429179518,0.02287426,120040.0,120030.0,0.80244519]
[1759429179817,0.3581821,120050.0,120040.0,0.1198491]
[1759429180016,0.1060621,120050.0,120040.0,0.80243829]
[1759429180412,0.8628221,120050.0,120040.0,0.80243829]
[1759429180715,0.02281,120050.0,120040.0,1.20243829]
[1759429180914,0.02281,120060.0,120050.0,0.1198421]
[1759429181219,0.1060551,120070.0,120060.0,0.1198352]
[1759429181408,0.8628151,120070.0,120060.0,0.80242439]
[1759429181813,0.1060551,120070.0,120060.0,0.80242439]
[1759429182118,0.8628151,120070.0,120060.0,0.80242439]
[1759429182319,0.04381988,120070.0,120060.0,0.83012037]
[1759429182526,0.80057988,120070.0,120060.0,0.83012037]
[1759429182710,0.083236,120080.0,120060.0,1.23012037]
[1759429182914,0.70885501,120080.0,120070.0,0.83011337]
[1759429184124,0.70885501,120080.0,120070.0,0.4806282]
[1759429184322,0.70885501,120080.0,120070.0,0.83011337]
[1759429184823,0.70885501,120080.0,120070.0,0.4806282]
[1759429185022,0.70885501,120080.0,120070.0,0.83011337]
[1759429185720,0.687846,120080.0,120070.0,0.83011337]
[1759429187429,0.687846,120080.0,120070.0,0.38607517]
[1759429187729,0.72236127,120080.0,120070.0,0.38393]
[1759429189333,0.701356,120080.0,120070.0,0.38393]
[1759429195433,0.1186183,120070.0,120060.0,0.467331]
[1759429196030,0.1186183,120070.0,120060.0,0.480811]
[1759429196637,0.1186183,120070.0,120060.0,0.39757]
[1759429198138,0.1056183,120070.0,120060.0,0.39757]
[1759429199036,0.1186183,120070.0,120060.0,0.38409]
[1759429199433,0.1186183,120070.0,120060.0,0.39757]
[1759429199932,0.18644452,120070.0,120060.0,0.39757]
[1759429200327,0.18644452,120070.0,120060.0,0.79975045]
[1759429201434,0.17344452,120070.0,120060.0,0.79975045]
[1759429201737,0.93008452,120070.0,120060.0,0.79975045]
[1759429202636,0.93008452,120070.0,120060.0,0.88299565]
[1759429203430,0.17344452,120070.0,120060.0,0.88299565]
[1759429203635,0.93008452,120070.0,120060.0,0.88299565]
[1759429203836,0.93201062,120070.0,120060.0,0.88299565]
[1759429204341,0.93201062,120070.0,120060.0,1.12419736]
[1759429204839,0.84877232,120070.0,120060.0,1.12419736]
[1759429207436,0.09213232,120070.0,120060.0,1.12419736]
[1759429207639,0.84873232,120070.0,120060.0,1.12419736]
[1759429208042,0.09213232,120070.0,120060.0,1.12419736]
[1759429208245,0.84873232,120070.0,120060.0,1.12419736]
[1759429210244,0.84873232,120070.0,120060.0,1.04095216]
[1759429210645,0.84873232,120070.0,120060.0,1.12419736]
[1759429211746,0.93197062,120070.0,120060.0,1.04095216]
[1759429211938,0.93197062,120070.0,120060.0,1.02747216]
[1759429211939,0.94497062,120070.0,120060.0,1.02747216]
[1759429212444,0.0243061,120070.0,120060.0,1.12419736]
[1759429212746,0.0019261,120070.0,120060.0,1.84588844]
[1759429213042,0.21718,120080.0,120070.0,0.1200083]
[1759429213247,0.23822625,120080.0,120070.0,1.12419046]
[1759429215140,0.3004113,120080.0,120070.0,0.71926108]
[1759429215346,0.3004113,120080.0,120070.0,0.80249938]
[1759429215746,0.32145633,120080.0,120070.0,0.80249938]
[1759429217843,0.4298016,120100.0,120090.0,0.1199944]
[1759429218041,0.04658,120100.0,120090.0,1.12417656]
[1759429218242,0.04658,120100.0,120090.0,1.13246266]
[1759429218739,0.04658,120100.0,120090.0,1.12417656]
[1759429221449,0.04658,120100.0,120090.0,0.4807944]
[1759429221945,0.04658,120100.0,120090.0,1.12417656]
[1759429222145,0.04658,120100.0,120090.0,0.80248548]
[1759429224042,0.04658,120100.0,120090.0,0.4807944]
[1759429224242,0.04658,120100.0,120090.0,0.80248548]
[1759429224548,0.04658,120100.0,120090.0,0.4807944]
[1759429224848,0.04658,120100.0,120090.0,0.80248548]
[1759429231854,1.18578966,120100.0,120090.0,0.02329]
[1759429232448,0.86409858,120100.0,120090.0,0.34498108]
[1759429232754,0.5424075,120100.0,120090.0,0.34498108]
[1759429233048,0.78088108,120100.0,120090.0,0.78900548]
[1759429233252,1.20294,120100.0,120090.0,0.80299548]
[1759429234657,1.2861575,120100.0,120090.0,0.80299548]
[1759429234859,1.2987675,120100.0,120090.0,0.80299548]
[1759429235059,1.62045858,120100.0,120090.0,0.38409]
[1759429235656,1.2987675,120100.0,120090.0,0.78900548]
[1759429235959,1.62045858,120100.0,120090.0,0.78900548]
[1759429236851,1.62045858,120100.0,120090.0,0.4673144]
[1759429237055,0.1178646,120090.0,120080.0,0.1048384]
[1759429237256,0.43955568,120090.0,120080.0,0.0832284]
[1759429237458,0.1178715,120080.0,120070.0,0.1048485]
[1759429237656,1.51757366,120080.0,120070.0,0.1048485]
[1759429238755,0.76125366,120080.0,120070.0,0.1048485]
[1759429238953,0.0832385,120070.0,120060.0,0.4656504]
[1759429239261,1.19588958,120070.0,120060.0,0.78734148]
[1759429239760,1.204382,120070.0,120060.0,0.78734148]
[1759429242258,0.12637092,120070.0,120060.0,0.78734148]
[1759429242464,1.2044218,120070.0,120060.0,0.80133148]
[1759429243066,1.27248771,120070.0,120060.0,0.80133148]
[1759429243267,0.95079663,120070.0,120060.0,1.12302256]
[1759429243466,0.95079663,120070.0,120060.0,0.4796404]
[1759429243670,0.95079663,120070.0,120060.0,1.12302256]
[1759429244859,0.10270591,120070.0,120060.0,1.12302256]
[1759429245065,0.72827,120080.0,120070.0,0.1188349]
[1759429245364,0.72827,120080.0,120070.0,0.80132598]
[1759429245570,0.77855,120080.0,120070.0,0.80132598]
[1759429246065,0.1420601,120100.0,120090.0,0.1048344]
[1759429246270,0.1420601,120100.0,120090.0,0.78732548]
[1759429246463,0.8985801,120100.0,120090.0,0.78732548]
[1759429246770,0.90682144,120100.0,120090.0,0.78732548]
[1759429246970,0.15030144,120100.0,120090.0,0.78732548]
[1759429247173,0.90682144,120100.0,120090.0,0.78732548]
[1759429249174,1.22851252,120100.0,120090.0,0.78732548]
[1759429249672,0.47199252,120100.0,120090.0,0.78732548]
[1759429249873,1.22839252,120100.0,120090.0,0.78732548]
[1759429250171,1.22839252,120100.0,120090.0,0.4656344]
[1759429250575,1.22839252,120100.0,120090.0,0.78732548]
[1759429251171,1.22839252,120100.0,120090.0,0.34330108]
[1759429251477,0.1178645,120090.0,120080.0,0.4440307]
[1759429251677,0.43955558,120090.0,120080.0,0.78733178]
[1759429251977,1.19615558,120090.0,120080.0,0.78733178]
[1759429252182,0.8744645,120090.0,120080.0,1.12301286]
[1759429252372,0.8744645,120090.0,120080.0,0.4796307]
[1759429252678,1.19615558,120090.0,120080.0,0.78733178]
[1759429252870,0.8744645,120090.0,120080.0,0.78733178]
[1759429253075,1.19615558,120090.0,120080.0,0.78733178]
[1759429259876,1.59615558,120090.0,120080.0,0.3608]
[1759429260079,1.59615558,120090.0,120060.0,0.1054254]
[1759429260080,0.1181485,120070.0,120060.0,0.1054254]
[1759429260284,0.79131,120070.0,120060.0,0.4791054]
[1759429260577,0.02214,120070.0,120060.0,0.8008909]
[1759429260783,0.77866,120070.0,120060.0,0.8008909]
[1759429261482,0.02214,120070.0,120060.0,0.8008909]
[1759429261684,0.77866,120070.0,120060.0,0.8008909]
[1759429263080,0.7787,120070.0,120060.0,0.8008909]
[1759429263484,0.77858,120070.0,120060.0,0.8008909]
[1759429263982,0.84503465,120070.0,120060.0,0.8008909]
[1759429264485,0.84503465,120070.0,120060.0,0.4791054]
[1759429264687,0.84503465,120070.0,120060.0,0.8008909]
[1759429265288,0.08859465,120070.0,120060.0,0.8008909]
[1759429265490,0.76075465,120070.0,120060.0,0.8008909]
[1759429266789,0.76893395,120070.0,120060.0,0.8008909]
[1759429267287,0.85217235,120070.0,120060.0,0.8008909]
[1759429267791,0.76893395,120070.0,120060.0,0.8008909]
[1759429268089,0.84507465,120070.0,120060.0,0.8008909]
[1759429269986,0.08859465,120070.0,120060.0,0.8008909]
[1759429270189,0.19441075,120100.0,120090.0,0.0832246]
[1759429270393,0.92045813,120100.0,120090.0,0.4271901]
[1759429270790,0.16397813,120100.0,120090.0,0.1054046]
[1759429270992,0.92045813,120100.0,120090.0,0.1054046]
[1759429271190,0.92045813,120100.0,120090.0,0.4271901]
[1759429271391,0.92045813,120100.0,120090.0,0.7879901]
[1759429272495,0.9288314,120100.0,120090.0,0.7879901]
[1759429273395,0.1723514,120100.0,120090.0,0.7879901]
[1759429273595,0.9288314,120100.0,120090.0,0.7879901]
[1759429273792,0.9288314,120100.0,120080.0,0.6825855]
[1759429273793,1.6506169,120100.0,120080.0,0.6825855]
[1759429274097,0.1181416,120080.0,120070.0,0.38298]
[1759429274291,0.1181485,120070.0,120060.0,0.4662255]
[1759429274691,0.13992826,120070.0,120060.0,0.4662255]
[1759429274893,0.1181485,120070.0,120060.0,0.4662255]
[1759429275287,0.1181485,120070.0,120060.0,0.788011]
[1759429275997,0.8746285,120070.0,120060.0,0.788011]
[1759429277497,0.8746285,120070.0,120060.0,0.4662255]
[1759429277696,0.8746285,120070.0,120060.0,0.788011]
[1759429278494,0.94104986,120070.0,120060.0,0.4662255]
[1759429278694,0.94104986,120070.0,120060.0,0.788011]
[1759429283601,0.18456986,120070.0,120060.0,0.788011]
[1759429283900,0.94108986,120070.0,120060.0,0.788011]
[1759429286698,0.10133136,120070.0,120060.0,0.788011]
[1759429286999,0.85785136,120070.0,120060.0,0.788011]
[1759429287502,0.94108986,120070.0,120060.0,0.788011]
[1759429288196,0.94108986,120070.0,120060.0,0.4272109]
[1759429288197,0.96310887,120070.0,120060.0,0.4272109]
[1759429289897,0.20658887,120070.0,120060.0,0.4272109]
[1759429290100,0.96310887,120070.0,120060.0,0.4272109]
[1759429291699,0.96310887,120070.0,120060.0,0.1054254]
[1759429291905,0.96310887,120070.0,120060.0,0.4272109]
[1759429292202,0.96310887,120070.0,120060.0,0.7880109]
[1759429292605,0.20658887,120070.0,120060.0,0.7880109]
[1759429292805,0.96310887,120070.0,120060.0,0.7880109]
[1759429293004,0.20658887,120070.0,120060.0,0.7880109]
[1759429293302,0.96310887,120070.0,120060.0,0.7880109]
[1759429293503,0.96310887,120070.0,120060.0,0.4662254]
[1759429293694,0.96310887,120070.0,120060.0,0.7880109]
[1759429294098,2.04569437,120070.0,120050.0,0.37479]
[1759429294297,0.1187423,120050.0,120040.0,0.4659792]
[1759429294502,0.1187423,120050.0,120030.0,0.6954655]
[1759429294503,0.1187492,120040.0,120030.0,0.02192]
[1759429294702,0.1187492,120040.0,120030.0,0.3437055]
[1759429295200,0.1187492,120040.0,120030.0,0.4269716]
[1759429295405,0.1187492,120040.0,120030.0,0.1051861]
[1759429296310,0.4405347,120040.0,120030.0,0.1051861]
[1759429296806,0.1187492,120040.0,120030.0,0.1051861]
[1759429297707,0.12718942,120040.0,120030.0,0.1051861]
[1759429298105,0.12718942,120040.0,120030.0,0.4269716]
[1759429298307,0.88370942,120040.0,120030.0,0.02192]
[1759429298708,0.88374942,120040.0,120030.0,0.1051862]
[1759429301804,0.12718942,120040.0,120030.0,0.1051862]
[1759429302004,0.88378942,120040.0,120030.0,0.1051862]
[1759429303312,0.12718942,120040.0,120030.0,0.1051862]
[1759429303514,0.88378942,120040.0,120030.0,0.1051862]
[1759429303717,0.88378942,120040.0,120030.0,0.4269717]
[1759429307419,0.88378942,120040.0,120030.0,0.7877717]
[1759429307610,0.12718942,120040.0,120030.0,0.7877717]
[1759429307804,0.03112022,120040.0,120030.0,1.5222672]
[1759429308013,0.78776022,120040.0,120030.0,1.5222672]
[1759429309313,0.03112022,120040.0,120030.0,1.5222672]
[1759429309516,0.69680022,120040.0,120030.0,1.5222672]
[1759429310122,0.69680022,120040.0,120030.0,1.2004817]
[1759429310315,0.03112022,120040.0,120030.0,1.2004817]
[1759429310618,0.67740022,120040.0,120030.0,1.2004817]
[1759429311322,0.76065902,120040.0,120030.0,1.2004817]
[1759429311515,0.67740022,120040.0,120030.0,0.8004817]
[1759429315219,0.03112022,120040.0,120030.0,0.8004817]
[1759429315421,0.67736022,120040.0,120030.0,0.8004817]